[Event "Early-Titled-Tuesday-Blitz-January-16-2024"]
[Site "Chess.com"]
[Date "2024.01.16"]
[Round "10"]
[White "doctorcristian"]
[Black "Witik"]
[Result "0-1"]
[WhiteElo "2556"]
[BlackElo "2757"]
[TimeControl "180+1"]
[EndTime "9:57:36 PST"]
[Termination "Witik won by resignation"]

1. d4 {[%clk 0:02:56.5]} 1... d5 {[%clk 0:02:59.9]} 2. Bf4 {[%clk 0:02:55.7]}
2... c5 {[%clk 0:02:56.1]} 3. c3 {[%clk 0:02:53.4]} 3... Nc6 {[%clk 0:02:54.2]}
4. e3 {[%clk 0:02:53.3]} 4... Qb6 {[%clk 0:02:54.2]} 5. Qb3 {[%clk 0:02:51.1]}
5... c4 {[%clk 0:02:43.7]} 6. Qxb6 {[%clk 0:02:50.8]} 6... axb6 {[%clk
0:02:43.8]} 7. e4 {[%clk 0:02:43.3]} 7... Nf6 {[%clk 0:02:37.3]} 8. Nd2 {[%clk
0:02:35.1]} 8... b5 {[%clk 0:02:37]} 9. Bg5 {[%clk 0:02:03.8]} 9... Nxe4 {[%clk
0:02:34.1]} 10. Nxe4 {[%clk 0:02:03.7]} 10... dxe4 {[%clk 0:02:35]} 11. f4
{[%clk 0:01:54.1]} 11... e6 {[%clk 0:02:12.2]} 12. a3 {[%clk 0:01:47.3]} 12...
Bd6 {[%clk 0:02:11]} 13. Nh3 {[%clk 0:01:40.6]} 13... Ne7 {[%clk 0:02:07.1]} 14.
Bxe7 {[%clk 0:01:33.2]} 14... Kxe7 {[%clk 0:02:07.1]} 15. g3 {[%clk 0:01:33.5]}
15... f5 {[%clk 0:02:05.2]} 16. Rc1 {[%clk 0:01:32.2]} 16... h6 {[%clk 0:02:03]}
17. Be2 {[%clk 0:01:31.2]} 17... g5 {[%clk 0:02:02.6]} 18. Rf1 {[%clk
0:01:30.3]} 18... g4 {[%clk 0:01:57.1]} 19. Nf2 {[%clk 0:01:29.1]} 19... h5
{[%clk 0:01:57.7]} 20. Nd1 {[%clk 0:01:28.8]} 20... h4 {[%clk 0:01:57.7]} 21.
Ne3 {[%clk 0:01:29.1]} 21... Bd7 {[%clk 0:01:53.2]} 22. Kd2 {[%clk 0:01:28.1]}
22... hxg3 {[%clk 0:01:52.1]} 23. hxg3 {[%clk 0:01:28.2]} 23... Rh3 {[%clk
0:01:52]} 24. Rg1 {[%clk 0:01:27.5]} 24... Rah8 {[%clk 0:01:51.9]} 25. Rg2
{[%clk 0:01:27.7]} 25... Bc6 {[%clk 0:01:43.1]} 26. Rcg1 {[%clk 0:01:25.5]}
26... R8h6 {[%clk 0:01:36.1]} 27. Bd1 {[%clk 0:01:24.8]} 27... Kd7 {[%clk
0:01:35.3]} 28. Be2 {[%clk 0:01:20.7]} 28... Kd8 {[%clk 0:01:34.5]} 29. a4
{[%clk 0:01:20.8]} 29... bxa4 {[%clk 0:01:33]} 30. Bxc4 {[%clk 0:01:21]} 30...
b5 {[%clk 0:01:30.4]} 31. Bxe6 {[%clk 0:01:18.2]} 31... Rxe6 {[%clk 0:01:29.3]}
32. d5 {[%clk 0:01:18.7]} 32... Bxd5 {[%clk 0:01:25.3]} 33. Nxd5 {[%clk
0:01:18.8]} 33... Bc5 {[%clk 0:01:25.6]} 34. Rd1 {[%clk 0:01:19]} 34... Rd6
{[%clk 0:01:25]} 35. Ke2 {[%clk 0:01:19.5]} 35... Kd7 {[%clk 0:01:19.4]} 36. Ne3
{[%clk 0:01:11.6]} 36... Bxe3 {[%clk 0:01:12.7]} 37. Rxd6+ {[%clk 0:01:10.9]}
37... Kxd6 {[%clk 0:01:13.6]} 38. Kxe3 {[%clk 0:01:11.4]} 38... Kc5 {[%clk
0:01:14.3]} 39. Rg1 {[%clk 0:01:05.1]} 39... Kc4 {[%clk 0:01:10.9]} 40. Rg2
{[%clk 0:01:02.4]} 40... Rh1 {[%clk 0:00:59.1]} 41. Kd2 {[%clk 0:01:02.2]} 41...
Kb3 {[%clk 0:00:50.4]} 42. Ke3 {[%clk 0:01:02.5]} 42... Rb1 {[%clk 0:00:46.5]}
43. Rh2 {[%clk 0:01:01.2]} 43... Rxb2 {[%clk 0:00:45.1]} 44. Rh5 {[%clk
0:01:01.3]} 44... a3 {[%clk 0:00:45.1]} 45. Rxf5 {[%clk 0:01:01.4]} 45... Kxc3
{[%clk 0:00:44]} 46. Rc5+ {[%clk 0:00:59.6]} 46... Kb4 {[%clk 0:00:42.5]} 47.
Rc8 {[%clk 0:00:59.3]} 47... a2 {[%clk 0:00:41.8]} 48. Ra8 {[%clk 0:00:59.4]}
48... Kb3 {[%clk 0:00:42.4]} 49. Kxe4 {[%clk 0:00:59.3]} 49... Rb1 {[%clk
0:00:42.9]} 50. Ra5 {[%clk 0:00:58.4]} 50... b4 {[%clk 0:00:41.1]} 51. Kf5
{[%clk 0:00:58.3]} 51... a1=Q {[%clk 0:00:41.6]} 52. Rxa1 {[%clk 0:00:58.7]}
52... Rxa1 {[%clk 0:00:42.5]} 53. Kxg4 {[%clk 0:00:59.6]} 53... Rf1 {[%clk
0:00:42.8]} 54. Kg5 {[%clk 0:00:59.2]} 54... Kc4 {[%clk 0:00:43.2]} 55. g4
{[%clk 0:00:59.8]} 55... b3 {[%clk 0:00:43.8]} 56. f5 {[%clk 0:01:00.4]} 56...
b2 {[%clk 0:00:44.3]} 57. Kg6 {[%clk 0:01:01]} 57... b1=Q {[%clk 0:00:44.9]} 58.
Kg5 {[%clk 0:01:01.3]} 58... Kd5 {[%clk 0:00:44.9]} 59. Kf6 {[%clk 0:01:01.5]}
59... Qb2+ {[%clk 0:00:43.9]} 60. Kf7 {[%clk 0:01:01.5]} 60... Qe5 {[%clk
0:00:43.7]} 61. Kg6 {[%clk 0:01:01.2]} 61... Rg1 {[%clk 0:00:43.4]} 62. Kg5
{[%clk 0:01:01.4]} 62... Qe4 {[%clk 0:00:40.7]} 63. Kf6 {[%clk 0:01:01.5]} 63...
Rxg4 {[%clk 0:00:40.3]} 0-1

[Event "Early-Titled-Tuesday-Blitz-January-16-2024"]
[Site "Chess.com"]
[Date "2024.01.16"]
[Round "10"]
[White "artooon"]
[Black "Konavets"]
[Result "1-0"]
[WhiteElo "2987"]
[BlackElo "3134"]
[TimeControl "180+1"]
[EndTime "9:57:37 PST"]
[Termination "artooon won by resignation"]

1. e4 {[%clk 0:03:00.9]} 1... e5 {[%clk 0:02:57.6]} 2. Nf3 {[%clk 0:03:01.3]}
2... Nc6 {[%clk 0:02:58.5]} 3. Bc4 {[%clk 0:03:01]} 3... Nf6 {[%clk 0:02:58.3]}
4. Ng5 {[%clk 0:03:00.9]} 4... Bc5 {[%clk 0:02:58.4]} 5. Bxf7+ {[%clk
0:02:56.5]} 5... Ke7 {[%clk 0:02:58.7]} 6. Bb3 {[%clk 0:02:53.5]} 6... Rf8
{[%clk 0:02:59]} 7. O-O {[%clk 0:02:50.1]} 7... Qe8 {[%clk 0:02:59.1]} 8. d3
{[%clk 0:02:43.6]} 8... d6 {[%clk 0:02:56.1]} 9. Be3 {[%clk 0:02:36.3]} 9... Qg6
{[%clk 0:02:47.6]} 10. Bxc5 {[%clk 0:02:34.9]} 10... dxc5 {[%clk 0:02:48.1]} 11.
f4 {[%clk 0:02:32.4]} 11... exf4 {[%clk 0:02:45.6]} 12. Nf3 {[%clk 0:02:32.7]}
12... Ng4 {[%clk 0:02:45]} 13. Nc3 {[%clk 0:02:30.6]} 13... Nb4 {[%clk
0:02:39.1]} 14. a3 {[%clk 0:01:44.7]} 14... Ne3 {[%clk 0:02:38]} 15. Qd2 {[%clk
0:01:45]} 15... Nxf1 {[%clk 0:02:33.8]} 16. Rxf1 {[%clk 0:01:45.9]} 16... Nc6
{[%clk 0:02:34.1]} 17. Nd5+ {[%clk 0:01:46.1]} 17... Kd8 {[%clk 0:02:33.3]} 18.
Nxf4 {[%clk 0:01:46.6]} 18... Qe8 {[%clk 0:02:05.6]} 19. Ng5 {[%clk 0:01:33.2]}
19... Nd4 {[%clk 0:02:05.8]} 20. Nxh7 {[%clk 0:01:22.2]} 20... Nxb3 {[%clk
0:01:52.7]} 21. cxb3 {[%clk 0:01:23.1]} 21... Rf7 {[%clk 0:01:52.7]} 22. d4
{[%clk 0:01:09.5]} 22... Bd7 {[%clk 0:01:39.3]} 23. e5 {[%clk 0:01:01.1]} 23...
cxd4 {[%clk 0:01:29.7]} 24. e6 {[%clk 0:00:57]} 24... Bxe6 {[%clk 0:01:25.3]}
25. Ng5 {[%clk 0:00:56.5]} 25... Rxf4 {[%clk 0:01:05.1]} 26. Rxf4 {[%clk
0:00:47.3]} 26... Bd7 {[%clk 0:01:05.3]} 27. Qxd4 {[%clk 0:00:41.5]} 27... Qe1+
{[%clk 0:00:48.3]} 28. Rf1 {[%clk 0:00:41.2]} 28... Qe7 {[%clk 0:00:49.2]} 29.
Rf8+ {[%clk 0:00:33.8]} 29... Qxf8 {[%clk 0:00:48.3]} 30. Ne6+ {[%clk
0:00:33.7]} 30... Ke7 {[%clk 0:00:49.2]} 31. Nxf8 {[%clk 0:00:34]} 31... Rxf8
{[%clk 0:00:50.1]} 32. Qxg7+ {[%clk 0:00:34]} 32... Rf7 {[%clk 0:00:50.2]} 33.
Qe5+ {[%clk 0:00:34.5]} 33... Kd8 {[%clk 0:00:49.8]} 34. h4 {[%clk 0:00:35.1]}
34... Re7 {[%clk 0:00:50.1]} 35. Qh8+ {[%clk 0:00:34.9]} 35... Be8 {[%clk
0:00:50.5]} 36. g4 {[%clk 0:00:33.8]} 36... Re4 {[%clk 0:00:48.8]} 37. g5 {[%clk
0:00:33.8]} 37... Kd7 {[%clk 0:00:47.9]} 38. Kf2 {[%clk 0:00:31.7]} 38... Bf7
{[%clk 0:00:40.8]} 39. h5 {[%clk 0:00:28.7]} 39... Re8 {[%clk 0:00:29.1]} 40.
Qg7 {[%clk 0:00:27.4]} 40... Re7 {[%clk 0:00:29.1]} 41. g6 {[%clk 0:00:25.6]}
41... Bxb3 {[%clk 0:00:28.6]} 42. Qd4+ {[%clk 0:00:26.3]} 42... Ke8 {[%clk
0:00:28.6]} 43. h6 {[%clk 0:00:25.4]} 43... Bc2 {[%clk 0:00:27.6]} 44. h7 {[%clk
0:00:25.2]} 1-0

[Event "Early-Titled-Tuesday-Blitz-January-16-2024"]
[Site "Chess.com"]
[Date "2024.01.16"]
[Round "10"]
[White "Happy1712Drummer"]
[Black "HPanesso"]
[Result "0-1"]
[WhiteElo "2485"]
[BlackElo "2653"]
[TimeControl "180+1"]
[EndTime "9:57:37 PST"]
[Termination "HPanesso won on time"]

1. d4 {[%clk 0:02:59.4]} 1... d5 {[%clk 0:02:57.5]} 2. Nf3 {[%clk 0:02:58.7]}
2... Nf6 {[%clk 0:02:56.8]} 3. c4 {[%clk 0:02:58.4]} 3... dxc4 {[%clk
0:02:56.4]} 4. Nc3 {[%clk 0:02:56.7]} 4... Bf5 {[%clk 0:02:50.7]} 5. Ne5 {[%clk
0:02:47.1]} 5... e6 {[%clk 0:02:42]} 6. Nxc4 {[%clk 0:02:44.5]} 6... Nbd7 {[%clk
0:02:38]} 7. Bg5 {[%clk 0:02:39.4]} 7... c5 {[%clk 0:02:36.6]} 8. e3 {[%clk
0:02:30.7]} 8... Be7 {[%clk 0:02:29.8]} 9. Be2 {[%clk 0:01:08.3]} 9... O-O
{[%clk 0:02:26.6]} 10. O-O {[%clk 0:01:07.5]} 10... Rc8 {[%clk 0:02:20.4]} 11.
Qb3 {[%clk 0:01:05]} 11... cxd4 {[%clk 0:02:18.8]} 12. exd4 {[%clk 0:01:05.9]}
12... b6 {[%clk 0:02:10.7]} 13. Rfd1 {[%clk 0:01:04]} 13... Ne4 {[%clk 0:02:00]}
14. Nxe4 {[%clk 0:01:00]} 14... Bxe4 {[%clk 0:01:58.9]} 15. Nd6 {[%clk
0:00:42.1]} 15... Bxg5 {[%clk 0:01:55]} 16. Nxe4 {[%clk 0:00:41.5]} 16... Bf6
{[%clk 0:01:33.5]} 17. d5 {[%clk 0:00:29.9]} 17... exd5 {[%clk 0:01:22.8]} 18.
Rxd5 {[%clk 0:00:30.8]} 18... Qe7 {[%clk 0:01:22.9]} 19. Bg4 {[%clk 0:00:12.1]}
19... Nc5 {[%clk 0:01:22.6]} 20. Nxc5 {[%clk 0:00:11.3]} 20... Rxc5 {[%clk
0:01:23.5]} 21. Rad1 {[%clk 0:00:10.2]} 21... Rxd5 {[%clk 0:01:17.6]} 22. Qxd5
{[%clk 0:00:11.1]} 22... Bxb2 {[%clk 0:01:17.1]} 23. Bf3 {[%clk 0:00:10.3]}
23... a5 {[%clk 0:01:12.7]} 24. g3 {[%clk 0:00:10.4]} 24... Ba3 {[%clk
0:01:11.4]} 25. Qc6 {[%clk 0:00:08.6]} 25... Bc5 {[%clk 0:01:10.4]} 26. Kg2
{[%clk 0:00:09]} 26... g6 {[%clk 0:01:09.2]} 27. Rd2 {[%clk 0:00:08.2]} 27...
Qg5 {[%clk 0:01:08.3]} 28. Re2 {[%clk 0:00:08]} 28... h5 {[%clk 0:01:06.7]} 29.
h4 {[%clk 0:00:08.5]} 29... Qf5 {[%clk 0:01:05.7]} 30. Qd5 {[%clk 0:00:08.1]}
30... Qxd5 {[%clk 0:01:04.7]} 31. Bxd5 {[%clk 0:00:09]} 31... Rd8 {[%clk
0:01:04.7]} 32. Bc4 {[%clk 0:00:08.9]} 32... Rd7 {[%clk 0:01:04.5]} 33. Rc2
{[%clk 0:00:07.1]} 33... Kg7 {[%clk 0:01:04]} 34. a4 {[%clk 0:00:07.5]} 34...
Rd4 {[%clk 0:00:56.1]} 35. Bb5 {[%clk 0:00:07.9]} 35... Rb4 {[%clk 0:00:54.4]}
36. Re2 {[%clk 0:00:07.8]} 36... f6 {[%clk 0:00:52.8]} 37. Kf3 {[%clk
0:00:07.7]} 37... g5 {[%clk 0:00:52.7]} 38. hxg5 {[%clk 0:00:06.8]} 38... fxg5
{[%clk 0:00:53.6]} 39. Kg2 {[%clk 0:00:07.1]} 39... h4 {[%clk 0:00:51.3]} 40.
gxh4 {[%clk 0:00:06.8]} 40... gxh4 {[%clk 0:00:52.2]} 41. Kh3 {[%clk 0:00:06.5]}
41... Rf4 {[%clk 0:00:51.6]} 42. Re6 {[%clk 0:00:05]} 42... Bxf2 {[%clk
0:00:49.3]} 43. Bd3 {[%clk 0:00:04.2]} 43... Rd4 {[%clk 0:00:47.7]} 44. Be4
{[%clk 0:00:03]} 44... Rxa4 {[%clk 0:00:46]} 0-1

[Event "Early-Titled-Tuesday-Blitz-January-16-2024"]
[Site "Chess.com"]
[Date "2024.01.16"]
[Round "10"]
[White "gabduschew"]
[Black "Dinosaurio_1975"]
[Result "0-1"]
[WhiteElo "2457"]
[BlackElo "2635"]
[TimeControl "180+1"]
[EndTime "9:57:39 PST"]
[Termination "Dinosaurio_1975 won on time"]

1. b3 {[%clk 0:02:59.2]} 1... d5 {[%clk 0:02:58.5]} 2. Bb2 {[%clk 0:02:59]} 2...
Nf6 {[%clk 0:02:59.1]} 3. e3 {[%clk 0:02:58.9]} 3... Bf5 {[%clk 0:02:59.6]} 4.
f4 {[%clk 0:02:58.3]} 4... e6 {[%clk 0:02:59.9]} 5. Nf3 {[%clk 0:02:58]} 5...
Be7 {[%clk 0:03:00.4]} 6. Be2 {[%clk 0:02:58.3]} 6... h6 {[%clk 0:03:00.5]} 7.
Nd4 {[%clk 0:02:54.6]} 7... Bh7 {[%clk 0:02:59.5]} 8. O-O {[%clk 0:02:53.2]}
8... Nbd7 {[%clk 0:02:54.1]} 9. d3 {[%clk 0:02:38.2]} 9... c6 {[%clk 0:02:51.7]}
10. h3 {[%clk 0:02:26.3]} 10... Qc7 {[%clk 0:02:48.7]} 11. Nd2 {[%clk
0:02:21.1]} 11... O-O {[%clk 0:02:28.1]} 12. c4 {[%clk 0:02:14.2]} 12... Nc5
{[%clk 0:02:18.8]} 13. N2f3 {[%clk 0:02:11.8]} 13... Ncd7 {[%clk 0:02:14.6]} 14.
Rc1 {[%clk 0:02:05.9]} 14... a5 {[%clk 0:02:02.4]} 15. cxd5 {[%clk 0:01:52.1]}
15... exd5 {[%clk 0:02:03.3]} 16. a3 {[%clk 0:01:51.2]} 16... Rfe8 {[%clk
0:01:42.7]} 17. Qd2 {[%clk 0:01:50.1]} 17... Bc5 {[%clk 0:01:39.5]} 18. Kh2
{[%clk 0:01:41.8]} 18... Qd6 {[%clk 0:01:36.7]} 19. a4 {[%clk 0:01:19.4]} 19...
Re7 {[%clk 0:01:26.2]} 20. Rfe1 {[%clk 0:01:09.6]} 20... Rae8 {[%clk 0:01:21.6]}
21. Bf1 {[%clk 0:01:08.4]} 21... Rxe3 {[%clk 0:01:18.5]} 22. g3 {[%clk
0:01:00.3]} 22... Rxe1 {[%clk 0:01:08.3]} 23. Rxe1 {[%clk 0:00:59.7]} 23... Rxe1
{[%clk 0:01:03.5]} 24. Qxe1 {[%clk 0:00:59.2]} 24... Qe7 {[%clk 0:01:03.6]} 25.
Qxa5 {[%clk 0:00:54]} 25... Qe3 {[%clk 0:00:27.6]} 26. Qd8+ {[%clk 0:00:20.6]}
26... Nf8 {[%clk 0:00:26.2]} 27. Bg2 {[%clk 0:00:19.1]} 27... Bxd3 {[%clk
0:00:23.1]} 28. Qc8 {[%clk 0:00:06.5]} 28... Qf2 {[%clk 0:00:20.7]} 29. Bc3
{[%clk 0:00:02.5]} 29... Bf1 {[%clk 0:00:19.5]} 30. Ne1 {[%clk 0:00:01]} 30...
Bxg2 {[%clk 0:00:19.5]} 0-1

[Event "Early-Titled-Tuesday-Blitz-January-16-2024"]
[Site "Chess.com"]
[Date "2024.01.16"]
[Round "10"]
[White "Anton_Demchenko"]
[Black "BardArtem"]
[Result "1-0"]
[WhiteElo "2992"]
[BlackElo "2817"]
[TimeControl "180+1"]
[EndTime "9:57:44 PST"]
[Termination "Anton_Demchenko won by resignation"]

1. e4 {[%clk 0:03:00.9]} 1... e5 {[%clk 0:02:57.4]} 2. Nf3 {[%clk 0:03:00.5]}
2... Nc6 {[%clk 0:02:58.1]} 3. Bc4 {[%clk 0:03:00.1]} 3... Bc5 {[%clk 0:02:58]}
4. d3 {[%clk 0:03:00.8]} 4... Nf6 {[%clk 0:02:58.3]} 5. Bg5 {[%clk 0:03:01]}
5... h6 {[%clk 0:02:56.9]} 6. Bh4 {[%clk 0:03:01.6]} 6... a6 {[%clk 0:02:54.4]}
7. c3 {[%clk 0:03:00.9]} 7... Be7 {[%clk 0:02:54.7]} 8. Bg3 {[%clk 0:02:59.8]}
8... d6 {[%clk 0:02:54.6]} 9. a4 {[%clk 0:03:00.3]} 9... O-O {[%clk 0:02:54.9]}
10. Nbd2 {[%clk 0:03:00.1]} 10... Be6 {[%clk 0:02:54.4]} 11. Bxe6 {[%clk
0:02:59.7]} 11... fxe6 {[%clk 0:02:55.3]} 12. h3 {[%clk 0:03:00.4]} 12... Nh5
{[%clk 0:02:48.3]} 13. O-O {[%clk 0:02:57.5]} 13... Nf4 {[%clk 0:02:44.8]} 14.
Bxf4 {[%clk 0:02:56.7]} 14... Rxf4 {[%clk 0:02:36.1]} 15. b4 {[%clk 0:02:56.9]}
15... Qf8 {[%clk 0:02:33.1]} 16. Qb3 {[%clk 0:02:28.3]} 16... Nd8 {[%clk
0:02:26.3]} 17. b5 {[%clk 0:02:19.4]} 17... a5 {[%clk 0:02:22.8]} 18. d4 {[%clk
0:02:18.9]} 18... exd4 {[%clk 0:02:14.6]} 19. cxd4 {[%clk 0:02:19.4]} 19... c6
{[%clk 0:02:06.5]} 20. Rac1 {[%clk 0:02:00.6]} 20... Kh8 {[%clk 0:01:58.8]} 21.
Rc3 {[%clk 0:01:58.9]} 21... Rc8 {[%clk 0:01:38.8]} 22. Nc4 {[%clk 0:01:44.5]}
22... cxb5 {[%clk 0:01:31.6]} 23. Nce5 {[%clk 0:01:44.8]} 23... bxa4 {[%clk
0:00:58.1]} 24. Ng6+ {[%clk 0:01:37.8]} 24... Kg8 {[%clk 0:00:58.5]} 25. Qxa4
{[%clk 0:01:29.5]} 25... Rxc3 {[%clk 0:00:58]} 26. Nxf8 {[%clk 0:01:29.1]} 26...
Rxf8 {[%clk 0:00:51.9]} 27. Qxa5 {[%clk 0:01:29.2]} 27... Rcxf3 {[%clk
0:00:41.1]} 28. gxf3 {[%clk 0:01:28.8]} 28... Nc6 {[%clk 0:00:41.4]} 29. Qb6
{[%clk 0:01:17.3]} 29... Bd8 {[%clk 0:00:27.8]} 30. Qb2 {[%clk 0:01:17.2]} 30...
Rxf3 {[%clk 0:00:11.4]} 31. Kg2 {[%clk 0:01:08]} 31... Rf8 {[%clk 0:00:10]} 32.
f4 {[%clk 0:01:04.3]} 32... d5 {[%clk 0:00:06.6]} 33. Qxb7 {[%clk 0:00:55.1]}
33... Nxd4 {[%clk 0:00:03.2]} 34. exd5 {[%clk 0:00:51.9]} 34... Nf5 {[%clk
0:00:03.7]} 35. Re1 {[%clk 0:00:37.5]} 35... exd5 {[%clk 0:00:02.8]} 36. Qxd5+
{[%clk 0:00:37.4]} 36... Kh8 {[%clk 0:00:03.6]} 37. Qc5 {[%clk 0:00:26.1]} 37...
Rg8 {[%clk 0:00:02.8]} 38. Qxf5 {[%clk 0:00:25.4]} 1-0

[Event "Early-Titled-Tuesday-Blitz-January-16-2024"]
[Site "Chess.com"]
[Date "2024.01.16"]
[Round "10"]
[White "Quattroporte300"]
[Black "KevinGeorgeMicheal"]
[Result "0-1"]
[WhiteElo "2423"]
[BlackElo "2262"]
[TimeControl "180+1"]
[EndTime "9:57:46 PST"]
[Termination "KevinGeorgeMicheal won by resignation"]

1. e4 {[%clk 0:03:00.9]} 1... e5 {[%clk 0:02:56.7]} 2. Nf3 {[%clk 0:02:58.3]}
2... Nc6 {[%clk 0:02:57.1]} 3. Nc3 {[%clk 0:02:58.7]} 3... Nf6 {[%clk
0:02:53.7]} 4. Bb5 {[%clk 0:02:58.9]} 4... Nd4 {[%clk 0:02:51.7]} 5. Bc4 {[%clk
0:02:56.1]} 5... Bb4 {[%clk 0:02:48.9]} 6. h3 {[%clk 0:02:53.2]} 6... d6 {[%clk
0:02:41.4]} 7. O-O {[%clk 0:02:51.5]} 7... O-O {[%clk 0:02:38.7]} 8. Re1 {[%clk
0:02:47.8]} 8... Be6 {[%clk 0:02:32.9]} 9. Bf1 {[%clk 0:02:41.9]} 9... Nxf3+
{[%clk 0:02:29.8]} 10. Qxf3 {[%clk 0:02:41]} 10... Nd7 {[%clk 0:02:29.7]} 11.
Nd5 {[%clk 0:02:34.4]} 11... Bxd5 {[%clk 0:02:11.9]} 12. exd5 {[%clk 0:02:33.8]}
12... Bc5 {[%clk 0:02:07.5]} 13. Bd3 {[%clk 0:02:22.6]} 13... g6 {[%clk
0:02:05.3]} 14. g4 {[%clk 0:02:21]} 14... Qf6 {[%clk 0:01:58.5]} 15. Qxf6 {[%clk
0:02:12.2]} 15... Nxf6 {[%clk 0:01:52.6]} 16. c4 {[%clk 0:02:13.1]} 16... Rae8
{[%clk 0:01:48.4]} 17. Kg2 {[%clk 0:02:07.5]} 17... Kg7 {[%clk 0:01:44.1]} 18.
a3 {[%clk 0:02:07.1]} 18... a5 {[%clk 0:01:43.5]} 19. b3 {[%clk 0:02:06.7]}
19... Bd4 {[%clk 0:01:42.8]} 20. Rb1 {[%clk 0:02:02.3]} 20... Nd7 {[%clk
0:01:41]} 21. b4 {[%clk 0:01:59.3]} 21... axb4 {[%clk 0:01:40.7]} 22. axb4
{[%clk 0:01:59.1]} 22... f5 {[%clk 0:01:37.8]} 23. Bb2 {[%clk 0:01:52.9]} 23...
Bxb2 {[%clk 0:01:36.6]} 24. Rxb2 {[%clk 0:01:52.8]} 24... fxg4 {[%clk
0:01:29.4]} 25. hxg4 {[%clk 0:01:52.5]} 25... Rf4 {[%clk 0:01:30]} 26. f3 {[%clk
0:01:50.6]} 26... Ref8 {[%clk 0:01:30]} 27. Re3 {[%clk 0:01:42.4]} 27... Nf6
{[%clk 0:01:23.7]} 28. Ra2 {[%clk 0:01:39.7]} 28... h5 {[%clk 0:01:15.9]} 29.
gxh5 {[%clk 0:01:21.2]} 29... Nxh5 {[%clk 0:01:15.1]} 30. Ra7 {[%clk 0:01:21.1]}
30... Rb8 {[%clk 0:01:14]} 31. Re4 {[%clk 0:01:15.7]} 31... Rf7 {[%clk
0:01:02.3]} 32. Bc2 {[%clk 0:01:15.2]} 32... Nf4+ {[%clk 0:01:01.1]} 33. Kg1
{[%clk 0:00:58.8]} 33... b6 {[%clk 0:00:59.7]} 34. Re1 {[%clk 0:00:49.7]} 34...
Rh8 {[%clk 0:00:57.1]} 35. Be4 {[%clk 0:00:44.7]} 35... Kf6 {[%clk 0:00:49.4]}
36. Kf2 {[%clk 0:00:41.5]} 36... Rh2+ {[%clk 0:00:45.8]} 37. Ke3 {[%clk
0:00:31.2]} 37... Ng2+ {[%clk 0:00:45.6]} 38. Kd3 {[%clk 0:00:31.8]} 38... Nxe1+
{[%clk 0:00:45.1]} 39. Kc3 {[%clk 0:00:32.5]} 39... Nxf3 {[%clk 0:00:41.6]} 40.
c5 {[%clk 0:00:22.6]} 40... Nxd2 {[%clk 0:00:39.6]} 41. Bc2 {[%clk 0:00:16.4]}
41... Nf3 {[%clk 0:00:37]} 42. c6 {[%clk 0:00:12.1]} 42... Nd4 {[%clk
0:00:36.5]} 43. Bd3 {[%clk 0:00:10.9]} 43... Rh3 {[%clk 0:00:34.7]} 44. Kd2
{[%clk 0:00:09.6]} 44... Nb3+ {[%clk 0:00:33.2]} 45. Ke2 {[%clk 0:00:09.2]}
45... Nc1+ {[%clk 0:00:33.2]} 0-1

[Event "Early-Titled-Tuesday-Blitz-January-16-2024"]
[Site "Chess.com"]
[Date "2024.01.16"]
[Round "10"]
[White "NM_Antelacus"]
[Black "Kopytkin"]
[Result "0-1"]
[WhiteElo "2170"]
[BlackElo "2395"]
[TimeControl "180+1"]
[EndTime "9:57:47 PST"]
[Termination "Kopytkin won by resignation"]

1. e4 {[%clk 0:03:00.9]} 1... c6 {[%clk 0:02:57.8]} 2. d4 {[%clk 0:02:59.3]}
2... d5 {[%clk 0:02:58.4]} 3. e5 {[%clk 0:02:59.6]} 3... c5 {[%clk 0:02:57.9]}
4. dxc5 {[%clk 0:02:58.9]} 4... e6 {[%clk 0:02:57.1]} 5. Be3 {[%clk 0:02:58.6]}
5... Nd7 {[%clk 0:02:50.7]} 6. Nf3 {[%clk 0:02:57.9]} 6... Ne7 {[%clk
0:02:43.3]} 7. c3 {[%clk 0:02:55.9]} 7... Nc6 {[%clk 0:02:42.8]} 8. Bd4 {[%clk
0:02:55]} 8... Bxc5 {[%clk 0:02:39.4]} 9. Bd3 {[%clk 0:02:49.2]} 9... Qb6 {[%clk
0:02:27.4]} 10. Bxc5 {[%clk 0:02:35.3]} 10... Nxc5 {[%clk 0:02:22.9]} 11. b3
{[%clk 0:02:27.4]} 11... Nxd3+ {[%clk 0:02:21.4]} 12. Qxd3 {[%clk 0:02:26.4]}
12... Bd7 {[%clk 0:02:21.7]} 13. O-O {[%clk 0:02:21.5]} 13... O-O-O {[%clk
0:02:20.2]} 14. Re1 {[%clk 0:02:14.4]} 14... h6 {[%clk 0:02:19.9]} 15. Nbd2
{[%clk 0:02:13.2]} 15... g5 {[%clk 0:02:19.7]} 16. c4 {[%clk 0:02:07.9]} 16...
g4 {[%clk 0:01:57]} 17. Nh4 {[%clk 0:01:56.7]} 17... Be8 {[%clk 0:01:49.4]} 18.
Qg3 {[%clk 0:01:48.6]} 18... Qd4 {[%clk 0:01:15.7]} 19. Rad1 {[%clk 0:01:40.6]}
19... dxc4 {[%clk 0:01:04.3]} 20. bxc4 {[%clk 0:01:28.8]} 20... Rg8 {[%clk
0:00:49.8]} 21. Kh1 {[%clk 0:00:59]} 21... Rg5 {[%clk 0:00:48.3]} 22. f4 {[%clk
0:00:57.7]} 22... gxf3 {[%clk 0:00:46.2]} 23. Nhxf3 {[%clk 0:00:51.6]} 23...
Rxg3 {[%clk 0:00:36.6]} 24. Nxd4 {[%clk 0:00:51.2]} 24... Rd3 {[%clk 0:00:29.3]}
25. Nxc6 {[%clk 0:00:46.8]} 25... Bxc6 {[%clk 0:00:30.2]} 26. Re2 {[%clk
0:00:33.2]} 26... Ba4 {[%clk 0:00:26.8]} 27. Rf1 {[%clk 0:00:30.8]} 27... Rxd2
{[%clk 0:00:26.1]} 28. Rxd2 {[%clk 0:00:31.1]} 28... Rxd2 {[%clk 0:00:26.6]} 29.
h3 {[%clk 0:00:30.6]} 29... Rd1 {[%clk 0:00:26.9]} 30. Rxd1 {[%clk 0:00:29.7]}
30... Bxd1 {[%clk 0:00:27.8]} 31. g4 {[%clk 0:00:26.9]} 31... Be2 {[%clk
0:00:27.5]} 32. c5 {[%clk 0:00:26.3]} 32... Kc7 {[%clk 0:00:27.3]} 33. Kg2
{[%clk 0:00:26.8]} 33... Kc6 {[%clk 0:00:27.8]} 34. Kg3 {[%clk 0:00:26.1]} 34...
Kxc5 {[%clk 0:00:27.9]} 35. Kh4 {[%clk 0:00:26.5]} 35... Bf1 {[%clk 0:00:27.2]}
36. Kg3 {[%clk 0:00:18.3]} 36... Kd4 {[%clk 0:00:27]} 37. h4 {[%clk 0:00:15.9]}
37... Kxe5 {[%clk 0:00:27.1]} 38. Kf3 {[%clk 0:00:15.9]} 38... b5 {[%clk
0:00:25.5]} 39. Ke3 {[%clk 0:00:15.7]} 39... a5 {[%clk 0:00:24.6]} 40. a3 {[%clk
0:00:13.1]} 40... Bh3 {[%clk 0:00:24.3]} 41. g5 {[%clk 0:00:12.6]} 41... hxg5
{[%clk 0:00:24.5]} 42. hxg5 {[%clk 0:00:13.1]} 42... b4 {[%clk 0:00:22.8]} 43.
axb4 {[%clk 0:00:12.8]} 43... axb4 {[%clk 0:00:23]} 44. Kd3 {[%clk 0:00:12.5]}
44... Bf1+ {[%clk 0:00:23.1]} 0-1